Cogmind - Beta 13 @@@ ROGUE MODE // 2024.04.02 @ 16:58:39 Player: sewer jenny Result: Destroyed by P-80 Master with Gamma Rifle Performance ------------- Evolutions (7) 3500 Regions Visited (10) 2000 Robots Destroyed (39) 195 Value Destroyed (1699) 1699 Prototype IDs (1) 20 Alien Tech Used (0) 0 Bonus (300) 300 TOTAL SCORE: 7714 Bonus ------- Aligned with FarCom 300 Cogmind --------- Core Integrity 0/1300 Matter 273/300 Energy 100/100 System Corruption 11% Temperature Warm (129) Movement Core (50) Location -3/Research Parts ------- > --- POWER (2) -------- (None) > --- PROPULSION (6) --- (None) > --- UTILITY (11) ----- Enhanced Optical Array > --- WEAPON (2) ------- (None) > --- INVENTORY (5) ---- (None) Peak State ------------ > --- POWER ------------ Light Deuterium Engine Light Nuclear Core > --- PROPULSION ------- Armored Medium Treads Armored Leg Gravmag System VTOL Module VTOL Module > --- UTILITY ---------- Advanced Cooling System Enhanced Optical Array Target Analyzer Microactuators Layered Light Armor Plating Hacking Suite System Guard > --- WEAPON ----------- Gatling Laser Spear > --- INVENTORY -------- Heavy Plasma Cannon [Rating: 63] Favorites ----------- Power Ion Engine Engine Ion Engine Power Core Fission Core Reactor Cold Fusion Reactor Propulsion Light Treads Treads Light Treads Leg Aluminum Leg Wheel Centrium Wheel Hover Unit Gravmag System Flight Unit VTOL Module Utility Hacking Suite Device ECM Suite Storage Small Storage Unit Processor Enhanced Optical Array Hackware Hacking Suite Protection Medium Armor Plating Weapon Heavy Plasma Cannon Energy Gun EM Pulse Gun Energy Cannon Heavy Plasma Cannon Ballistic Gun Light Assault Rifle Ballistic Cannon Linear Accelerator Launcher Rocket Launcher Slashing Weapon Power Sword Piercing Weapon Spear Build | -11 -10 -10 -10 -9 -8 -7 -6 -5 -4 -3 ------- Run | Yrd Mat Min Exi Min Mat Fac Fac Fac Fac Res Slots Evolved 14 | . . . . . 4 2 2 2 2 2 Power 1 | . . . . . . 1 . . . . Propulsion 4 | . . . . . 2 . 1 . 1 . Utility 9 | . . . . . 2 1 1 2 1 2 Weapon . | . . . . . . . . . . . Parts Attached 105 | 6 3 1 . 1 29 6 23 18 6 12 Power 21 | 1 . . . . 7 1 3 6 2 1 Engine 9 | 1 . . . . 5 . 2 1 . . Core 8 | . . . . . 2 1 1 4 . . Reactor 4 | . . . . . . . . 1 2 1 Propulsion 27 | 2 . . . . 6 1 6 7 1 4 Treads 6 | 2 . . . . . . 2 2 . . Leg 11 | . . . . . 6 . 2 2 . 1 Wheel 1 | . . . . . . . . . . 1 Hover 7 | . . . . . . 1 2 1 1 2 Flight 2 | . . . . . . . . 2 . . Utility 28 | 1 3 . . . 8 3 8 3 2 . Device 11 | . 2 . . . 3 . 4 1 1 . Storage 2 | 1 1 . . . . . . . . . Processor 7 | . . . . . 3 1 2 1 . . Hackware 3 | . . . . . . 2 . 1 . . Protection 5 | . . . . . 2 . 2 . 1 . Artifact . | . . . . . . . . . . . Weapon 29 | 2 . 1 . 1 8 1 6 2 1 7 Energy Gun 11 | 2 . . . . 5 1 1 1 . 1 Energy Cannon 7 | . . . . . 2 . 2 1 1 1 Ballistic Gun 2 | . . 1 . . 1 . . . . . Ballistic Cannon 1 | . . . . . . . . . . 1 Launcher 2 | . . . . 1 . . 1 . . . Special Weapon . | . . . . . . . . . . . Impact Weapon . | . . . . . . . . . . . Slashing Weapon 5 | . . . . . . . 1 . . 4 Piercing Weapon 1 | . . . . . . . 1 . . . Special Melee Weapon . | . . . . . . . . . . . Unidentified Prototypes 1 | . . . . . . . . 1 . . Parts Lost 72 | . 1 . . . 15 . 17 24 1 14 Power 14 | . . . . . 4 . 2 5 . 3 Propulsion 22 | . . . . . 3 . 7 8 . 4 Utility 18 | . . . . . 4 . 4 8 . 2 Weapon 18 | . 1 . . . 4 . 4 3 1 5 Highest Loss Streak 14 | . 1 . . . 5 . 9 14 1 10 To Critical Strikes . | . . . . . . . . . . . Average Slot Usage (%) 77 | . 90 93 100 100 78 88 78 65 28 26 Engine 7 | . 14 14 14 14 6 7 5 1 . . Core 1 | . . . . . 2 7 3 1 . . Treads 11 | . 28 28 28 28 8 . 5 3 . . Leg 7 | . . . . . 15 23 12 5 . . Hover 1 | . . . . . . . 4 2 1 2 Device 14 | . 16 28 28 28 15 7 7 12 4 2 Processor 7 | . . . . . 9 17 12 15 5 4 Hackware 3 | . . . . . . 1 11 5 . . Protection 2 | . . . . . 2 7 3 3 4 2 Energy Gun 5 | . 21 14 14 . 6 7 1 1 . . Energy Cannon 2 | . . . . . 3 . 6 . 1 . Ballistic Gun 4 | . . 7 14 14 2 7 1 . . . Launcher 2 | . . . . 13 4 . 1 . . . Naked Turns 2 | . . . . . 2 . . . . . Heaviest Build 56 | 14 30 11 11 13 23 29 56 32 52 56 Greatest Support 50 | 40 40 40 40 40 40 30 50 50 12 28 Greatest Overweight (x) 13 | 1 . . . . 5 . 9 9 13 4 Average Overweight (x) . | . . . . . . . . . 7 1 Largest Inventory Capacity 15 | 8 15 5 5 5 5 5 5 5 5 5 Average Capacity 5 | 6 8 5 5 5 5 5 5 5 5 5 Most Carried 5 | 5 4 4 3 4 5 3 4 4 2 2 Average Carried 1 | 2 3 3 3 3 1 . 1 1 . . Final Capacity 8 | 8 5 5 5 5 5 5 5 5 5 5 Final Carried 3 | 3 3 3 3 3 1 1 2 1 . . Class Distribution -------------------- 64% | Mutant 15% | Hacker-Mutant 15% | Scavenger-Mutant 4% | Skirmisher Dominant Class ---------------- Mutant | -10/Materials Mutant | -10/Mines Mutant | -10/Exiles Mutant | -9/Mines Mutant | -8/Materials Scavenger-Mutant | -7/Factory Hacker-Mutant | -6/Factory Mutant | -5/Factory Mutant | -4/Factory Mutant | -3/Research Resources | -11 -10 -10 -10 -9 -8 -7 -6 -5 -4 -3 ----------- Run | Yrd Mat Min Exi Min Mat Fac Fac Fac Fac Res Matter Collected 1183 | 256 19 21 . 20 214 . 341 158 65 89 Remotely . | . . . . . . . . . . . Salvage Created 2004 | . 110 11 . . 604 . 693 345 90 151 Parts 95 | . 5 1 . . 23 . 32 23 3 8 Haulers Intercepted . | . . . . . . . . . . . Recyclers Shooed . | . . . . . . . . . . . Parts Field Recycled . | . . . . . . . . . . . Retrieved Matter . | . . . . . . . . . . . Parts Self-Destructed . | . . . . . . . . . . . Prevented . | . . . . . . . . . . . Kills | -11 -10 -10 -10 -9 -8 -7 -6 -5 -4 -3 ------- Run | Yrd Mat Min Exi Min Mat Fac Fac Fac Fac Res Combat Hostiles Destroyed 31 | . 2 1 . . 12 . 9 5 1 1 Melee 5 | . . . . . . . . 5 . . Guns 11 | . 2 1 . . 7 . 1 . . . Cannons 6 | . . . . . 2 . 3 . . 1 AOE 4 | . . . . . 1 . 3 . . . Classes Destroyed 10 | . 1 1 . . 4 . 3 . . 1 Worker 1 | . . . . . . . 1 . . . Builder 2 | . . . . . . . 2 . . . Recycler 1 | . . . . . . . . . . 1 Watcher 4 | . . . . . 2 . . 1 . 1 Swarmer 3 | . . 1 . . 1 . . 1 . . Grunt 15 | . 2 . . . 8 . 4 1 . . Brawler 1 | . . . . . 1 . . . . . Duelist 2 | . . . . . 1 . 1 . . . Sentry 6 | . . . . . 1 . 2 2 1 . Programmer 4 | . . . . . . . 2 1 . 1 Best Kill Streak 4 | . 2 1 . . 3 . 4 2 1 3 Combat Bots Only 3 | . 2 1 . . 3 . 2 2 1 1 Max Kills in Single Turn 1 | . 1 1 . . 1 . 1 1 1 1 Gunslinging . | . . . . . . . . . . . Exploded 1 | . . . . . 1 . 1 . . . Melee 1 | . . . . . . . . 1 . . Uniques/NPCs Destroyed . | . . . . . . . . . . . Combat | -11 -10 -10 -10 -9 -8 -7 -6 -5 -4 -3 -------- Run | Yrd Mat Min Exi Min Mat Fac Fac Fac Fac Res Hostile Shots Fired 827 | . 12 29 . . 121 . 219 230 11 205 Missed 263 | . 2 14 . . 32 . 84 61 2 68 Damage Taken 10766 | . 174 124 . . 1522 100 2133 3521 343 2849 Core 3334 | . 11 16 . . 456 50 492 987 . 1322 Absorbed by Shields . | . . . . . . . . . . . Redirected to Shielding 100 | . . . . . . . 100 . . . Core Remaining (%) 63 | 100 . . . 89 17 92 42 1 100 . Volleys Fired 176 | . 11 11 . . 78 . 54 8 4 10 Largest 2 | . 2 1 . . 2 . 2 1 1 1 Hottest 180 | . 80 20 . . 144 . 180 90 88 75 Shots Fired 219 | . 21 11 . . 91 . 74 8 4 10 Gun 117 | . 21 11 . . 64 . 17 2 . 2 Cannon 92 | . . . . . 26 . 48 6 4 8 Launcher 10 | . . . . . 1 . 9 . . . Special . | . . . . . . . . . . . Kinetic 31 | . . 11 . . 6 . 6 . . 8 Thermal 145 | . . . . . 84 . 53 8 . . Explosive 1 | . . . . . 1 . . . . . Electromagnetic 42 | . 21 . . . . . 15 . 4 2 Robot Hit Streak 18 | . 7 2 . . 16 . 18 4 5 9 Robot Miss Streak 5 | . 3 3 . . 3 . 5 3 . 1 Penetration Max . | . . . . . . . . . . . Secondary Targets . | . . . . . . . . . . . Shots Hit Robots 171 | . 12 4 . . 65 . 55 22 4 9 Core Hits 79 | . 5 3 . . 27 . 22 13 2 7 Critical Kills . | . . . . . . . . . . . Critical Parts Destroyed . | . . . . . . . . . . . Critical Strikes 6 | . . . . . 4 . 1 . . 1 Burn 4 | . . . . . 4 . . . . . Blast 1 | . . . . . . . . . . 1 Corrupt 1 | . . . . . . . 1 . . . Melee Attacks 36 | . . . . . . . 2 32 . 2 Impact . | . . . . . . . . . . . Slashing 4 | . . . . . . . 2 . . 2 Piercing 32 | . . . . . . . . 32 . . Sneak Attacks . | . . . . . . . . . . . Combat Hostiles . | . . . . . . . . . . . Follow-up Attacks . | . . . . . . . . . . . Damage Inflicted 4704 | . 185 46 . . 1390 . 2025 592 120 346 Guns 1278 | . 185 46 . . 733 . 237 22 . 55 Cannons 2137 | . . . . . 550 . 1087 97 119 284 Explosions 736 | . . . . . 98 . 638 . . . Melee 522 | . . . . . . . 49 473 . . Ramming 31 | . . . . . 9 . 14 . 1 7 Kinetic 432 | . . 46 . . 26 . 76 . . 284 Thermal 2589 | . . . . . 1257 . 1213 119 . . Explosive 98 | . . . . . 98 . . . . . Electromagnetic 1032 | . 185 . . . . . 673 . 119 55 Impact . | . . . . . . . . . . . Slashing 49 | . . . . . . . 49 . . . Piercing 473 | . . . . . . . . 473 . . Highest Corruption 9 | . . . . . 3 . 5 7 . 9 Average Corruption 3 | . . . . . 3 . 4 3 . 4 Corruption Purged . | . . . . . . . . . . . Corruption Blocked . | . . . . . . . . . . . Effects 26 | . . . . . 15 . 7 1 . 3 Message Errors 8 | . . . . . 5 . 2 . . 1 Matter Fused 6 | . . . . . 3 . 3 . . . Heat Flow Errors 3 | . . . . . . . 1 1 . 1 Energy Discharges 3 | . . . . . 2 . 1 . . . Parts Rejected 1 | . . . . . . . . . . 1 Parts Fused 1 | . . . . . 1 . . . . . Data Loss (minor) 4 | . . . . . 4 . . . . . Overload Shots . | . . . . . . . . . . . Overflow Damage 172 | . . . . . 41 . 131 . . . Projectiles 114 | . . . . . 25 . 89 . . . Explosions 54 | . . . . . 16 . 38 . . . Melee 4 | . . . . . . . 4 . . . Knockbacks 4 | . . . . . . . . . . 4 Impact 1 | . . . . . . . . . . 1 Kinetic 3 | . . . . . . . . . . 3 Secondary . | . . . . . . . . . . . Self-Inflicted Damage 173 | . . . . . . . 170 . . 3 Shots 4 | . . . . . . . 4 . . . Rammed 6 | . . . . . . . 4 . 1 1 Targets Rammed 9 | . . . . . 2 . 4 . 1 2 Kicked 3 | . . . . . 2 . . . . 1 Crushed . | . . . . . . . . . . . Highest Temperature 378 | . 7 . . . 303 . 378 98 111 175 Average Temperature 92 | . 3 . . . 109 . 100 31 50 34 Received Heat Transfer 2398 | . 78 . . . 765 . 510 769 9 267 Effects 1 | . . . . . . . 1 . . . Matter Decay 1 | . . . . . . . 1 . . . Siege Activations . | . . . . . . . . . . . Robots Corrupted 2 | . . . . . . . 1 . 1 . Combat Hostiles 2 | . . . . . . . 1 . 1 . Parts Fried 4 | . 1 . . . . . 2 . 1 . Impact Corruptions . | . . . . . . . . . . . Robots Melted 3 | . . . . . 2 . 1 . . . Combat Hostiles 3 | . . . . . 2 . 1 . . . Parts Melted 11 | . . . . . 7 . 3 1 . . Heat Transferred 4588 | . . . . . 2590 . 1798 200 . . Parts Sabotaged . | . . . . . . . . . . . Parts Stolen . | . . . . . . . . . . . Parts Stripped . | . . . . . . . . . . . Power Chain Reactions 2 | . . . . . . . 2 . . . Alert | -11 -10 -10 -10 -9 -8 -7 -6 -5 -4 -3 ------- Run | Yrd Mat Min Exi Min Mat Fac Fac Fac Fac Res Peak Influence 166 | . 70 47 . . 166 37 106 92 45 95 Initial 37 | . . 27 . . . 37 17 36 . 18 Average 33 | . 32 24 . . 49 37 43 38 3 27 Maximum Alert Level . | . . . . . . . . . . . Low Security (%) 100 | 100 100 100 . 100 100 100 100 100 100 100 Level 1 . | . . . . . . . . . . . Level 2 . | . . . . . . . . . . . Level 3 . | . . . . . . . . . . . Level 4 . | . . . . . . . . . . . Level 5 . | . . . . . . . . . . . High Security . | . . . . . . . . . . . Max Security . | . . . . . . . . . . . Squads Dispatched 21 | . 2 . . . 5 1 8 1 1 3 Investigation 3 | . . . . . 1 . 2 . . . Extermination 6 | . . . . . . 1 3 1 . 1 Reinforcement 8 | . 2 . . . 1 . 3 . 1 1 Assault 1 | . . . . . . . . . . 1 Garrison 3 | . . . . . 3 . . . . . Intercept . | . . . . . . . . . . . Searches Triggered . | . . . . . . . . . . . Construction Impeded 1 | . . . . . . . 1 . . . Haulers Reinforced . | . . . . . . . . . . . Active Scanning Responses . | . . . . . . . . . . . Cargo Convoy Interrupts . | . . . . . . . . . . . Stealth | -11 -10 -10 -10 -9 -8 -7 -6 -5 -4 -3 --------- Run | Yrd Mat Min Exi Min Mat Fac Fac Fac Fac Res Distress Signals 7 | . 1 1 . . 4 . . . . 1 Communications Jammed . | . . . . . . . . . . . Distress Signals . | . . . . . . . . . . . Times Spotted 87 | . 4 7 . . 21 . 19 15 2 19 Peak Tracking Total 14 | . 4 3 . . 4 2 4 6 1 14 Tactical Retreats 14 | . . 2 . . 4 . 5 . . 3 Traps | -11 -10 -10 -10 -9 -8 -7 -6 -5 -4 -3 ------- Run | Yrd Mat Min Exi Min Mat Fac Fac Fac Fac Res Traps Triggered 6 | . 1 . . . 2 2 1 . . . Indirectly . | . . . . . . . . . . . Trap Hack Attempts . | . . . . . . . . . . . Triggered . | . . . . . . . . . . . Disarmed . | . . . . . . . . . . . Reprogrammed . | . . . . . . . . . . . Reused . | . . . . . . . . . . . Traps Extracted . | . . . . . . . . . . . Installed . | . . . . . . . . . . . Triggered . | . . . . . . . . . . . Machines | -11 -10 -10 -10 -9 -8 -7 -6 -5 -4 -3 ---------- Run | Yrd Mat Min Exi Min Mat Fac Fac Fac Fac Res Machines Disabled 4 | . . . . . 1 . 3 . . . Max in Single Turn 1 | . . . . . 1 . 1 . . . Garrison Access 1 | . . . . . . . . . . 1 Machines Repaired . | . . . . . . . . . . . Machines Dismantled . | . . . . . . . . . . . Machines Sabotaged . | . . . . . . . . . . . Overloaded Fab Kills . | . . . . . . . . . . . Hacking | -11 -10 -10 -10 -9 -8 -7 -6 -5 -4 -3 --------- Run | Yrd Mat Min Exi Min Mat Fac Fac Fac Fac Res Machines Accessed 7 | . 1 . 1 . 1 . 2 1 . 1 Terminals 4 | . 1 . . . 1 . . 1 . 1 Fabricators . | . . . . . . . . . . . Repair Stations . | . . . . . . . . . . . Recycling Units 2 | . . . . . . . 2 . . . Scanalyzers . | . . . . . . . . . . . Garrison Access . | . . . . . . . . . . . Total Hacks 12 | . 1 . 4 . 1 . 4 1 . 1 Successful 10 | . . . 4 . 1 . 3 1 . 1 Failed 2 | . 1 . . . . . 1 . . . Catastrophic . | . . . . . . . . . . . Database Lockouts . | . . . . . . . . . . . Manual 1 | . . . . . . . . . . 1 Terminals 4 | . 1 . . . 1 . . 1 . 1 Fabricators . | . . . . . . . . . . . Repair Stations . | . . . . . . . . . . . Recycling Units 4 | . . . . . . . 4 . . . Scanalyzers . | . . . . . . . . . . . Garrison Access . | . . . . . . . . . . . Terminal Hacks 7 | . . . 4 . 1 . . 1 . 1 Record 4 | . . . 4 . . . . . . . Open DSF 1 | . . . . . . . . . . 1 Alert Level 2 | . . . . . 1 . . 1 . . Fabricator Hacks . | . . . . . . . . . . . Repair Station Hacks . | . . . . . . . . . . . Recycling Unit Hacks 3 | . . . . . . . 3 . . . Process 1 | . . . . . . . 1 . . . Report Inventory 2 | . . . . . . . 2 . . . Scanalyzer . | . . . . . . . . . . . Garrison Access Hacks . | . . . . . . . . . . . Unauthorized Hacks . | . . . . . . . . . . . Terminals . | . . . . . . . . . . . Fabricators . | . . . . . . . . . . . Repair Stations . | . . . . . . . . . . . Recycling Units . | . . . . . . . . . . . Scanalyzers . | . . . . . . . . . . . Garrison Access . | . . . . . . . . . . . Data Cores Recovered . | . . . . . . . . . . . Used . | . . . . . . . . . . . Hacking Detections 1 | . . . . . . . . . . 1 Full Trace Events . | . . . . . . . . . . . Feedback Events . | . . . . . . . . . . . Feedback Blocked . | . . . . . . . . . . . Robot Schematics Acquired . | . . . . . . . . . . . Robots Built . | . . . . . . . . . . . Authchips . | . . . . . . . . . . . Time . | . . . . . . . . . . . Total Robot Build Rating . | . . . . . . . . . . . Part Schematics Acquired . | . . . . . . . . . . . Parts Built . | . . . . . . . . . . . Authchips . | . . . . . . . . . . . Time . | . . . . . . . . . . . Total Part Build Rating . | . . . . . . . . . . . Parts Repaired . | . . . . . . . . . . . Time . | . . . . . . . . . . . Parts Recycled . | . . . . . . . . . . . Recycled Matter 90 | . . . . . . . 90 . . . Retrieved Matter . | . . . . . . . . . . . Retrieved Components . | . . . . . . . . . . . Parts Scanalyzed . | . . . . . . . . . . . Part Schematics Acquired . | . . . . . . . . . . . Parts Damaged . | . . . . . . . . . . . Bothacking | -11 -10 -10 -10 -9 -8 -7 -6 -5 -4 -3 ------------ Run | Yrd Mat Min Exi Min Mat Fac Fac Fac Fac Res Used RIF Installer . | . . . . . . . . . . . Robots Hacked . | . . . . . . . . . . . Non-combat . | . . . . . . . . . . . Combat . | . . . . . . . . . . . Robot Hacks Applied . | . . . . . . . . . . . Relay Couplers Released 2 | . . . . . . . . . . 2 Machine Destruction 2 | . . . . . . . . . . 2 Fabnet Peak Effective % . | . . . . . . . . . . . Robots Rewired . | . . . . . . . . . . . Allies Hacked . | . . . . . . . . . . . Hacks Repelled . | . . . . . . . . . . . Allies | -11 -10 -10 -10 -9 -8 -7 -6 -5 -4 -3 -------- Run | Yrd Mat Min Exi Min Mat Fac Fac Fac Fac Res Total Allies . | . . . . . . . . . . . Largest Group . | . . . . . . . . . . . Highest-Rated Group . | . . . . . . . . . . . Highest-Rated Ally . | . . . . . . . . . . . Total Orders . | . . . . . . . . . . . Ally Attacks . | . . . . . . . . . . . Total Damage . | . . . . . . . . . . . Kills . | . . . . . . . . . . . Allies Corrupted . | . . . . . . . . . . . Allies Melted . | . . . . . . . . . . . Intel | -11 -10 -10 -10 -9 -8 -7 -6 -5 -4 -3 ------- Run | Yrd Mat Min Exi Min Mat Fac Fac Fac Fac Res Robot Analysis Total . | . . . . . . . . . . . Derelict Logs Recovered 2 | . . 1 . 1 . . . . . . Drone Launches 2 | . . . . . . . 2 . . . Drone Recoveries . | . . . . . . . . . . . Exploration | -11 -10 -10 -10 -9 -8 -7 -6 -5 -4 -3 ------------- Run | Yrd Mat Min Exi Min Mat Fac Fac Fac Fac Res Turns Passed 9068 | 115 251 497 1114 684 1717 354 2359 957 613 407 Spaces Moved 4754 | 68 133 284 697 412 717 269 1329 530 112 203 Core 737 | 16 . . . . 106 . 458 11 57 89 Treads 2246 | 52 133 284 697 412 289 . 339 40 . . Legs 1582 | . . . . . 322 269 491 479 . 21 Wheels 6 | . . . . . . . . . . 6 Hover 183 | . . . . . . . 41 . 55 87 Flight . | . . . . . . . . . . . Fastest Speed 50 | 50 160 160 160 160 50 120 50 50 50 50 Average Speed 158 | 142 160 160 160 160 159 120 144 136 465 170 Slowest Speed 700 | 160 160 160 160 160 300 120 500 500 700 300 Overloaded Moves . | . . . . . . . . . . . Propulsion Burnouts . | . . . . . . . . . . . Robots Hopped . | . . . . . . . . . . . Cave-ins Triggered . | . . . . . . . . . . . Exploration Rate (%) 32 | 5 29 57 89 81 39 8 23 16 2 9 Regions Visited 10 Branch Regions 3 Pre-discovered Areas . | . . . . . . . . . . . Known Exits Taken . | . . . . . . . . . . . Unknown Exits Taken 10 | 1 1 1 1 1 1 1 1 1 1 . Scrap Searched 2 | . . 1 . 1 . . . . . . Spaces Dug . | . . . . . . . . . . . Terrain Destroyed 71 | . . . . . 17 . 52 2 . . Melee . | . . . . . . . . . . . Projectile 17 | . . . . . 3 . 12 2 . . AOE 54 | . . . . . 14 . 40 . . . Terrain Rammed . | . . . . . . . . . . . Walls Destroyed . | . . . . . . . . . . . Machines Disabled . | . . . . . . . . . . . Actions | -11 -10 -10 -10 -9 -8 -7 -6 -5 -4 -3 --------- Run | Yrd Mat Min Exi Min Mat Fac Fac Fac Fac Res Total 6045 | 86 151 318 696 437 1199 299 1691 717 199 252 Wait 857 | 4 . 22 . 23 347 19 246 113 72 11 Move 4744 | 67 132 283 696 411 716 268 1328 529 111 203 Hop . | . . . . . . . . . . . Pick Up 96 | 9 3 1 . 1 22 5 24 16 5 10 Fast Attach . | . . . . . . . . . . . Attach 93 | 6 3 1 . 1 21 4 21 18 6 12 Detach 4 | . . . . . . 1 . 1 . 2 Swap 12 | . . . . . 8 2 2 . . . Drop 18 | . 2 . . 1 5 . 10 . . . Fire 176 | . 11 11 . . 78 . 54 8 4 10 Melee 36 | . . . . . . . 2 32 . 2 Ram 6 | . . . . . . . 4 . 1 1 Kick 3 | . . . . . 2 . . . . 1 Crush . | . . . . . . . . . . . Escape Stasis . | . . . . . . . . . . . Rewire . | . . . . . . . . . . . Trap . | . . . . . . . . . . . Miscellaneous . | . . . . . . . . . . . Route ------- -11/Scrapyard -10/Materials -10/Mines -10/Exiles (discovered 2 exits: [*Min x2]) -9/Mines -8/Materials (discovered 2 exits: *Fac / Sto) -7/Factory -6/Factory -5/Factory -4/Factory -3/Research History --------- Turn | Location | Event 10 | -11/Scrapyard | Discovered new exit (range 15) 116 | -11/Scrapyard | Entered Materials 302 | -10/Materials | Build established: Mutant 306 | -10/Materials | Met 8R-AWN 355 | -10/Materials | Discovered new exit (range 8) 367 | -10/Materials | Entered Mines 369 | -10/Mines | Followed 8R-AWN into the Mines 633 | -10/Mines | Learned location of 1 exit from Materials 856 | -10/Mines | Discovered new exit (range 5) 864 | -10/Mines | Entered Exiles 892 | -10/Exiles | Discovered new exit (range 15) 920 | -10/Exiles | Welcomed by 8R-AWN 956 | -10/Exiles | Met EX-HEX 1005 | -10/Exiles | Met EX-BIN 1028 | -10/Exiles | Aligned with FarCom system 1029 | -10/Exiles | Given EX-Vault access code 1168 | -10/Exiles | Met EX-DEC 1246 | -10/Exiles | Visited The Gauntlet 1492 | -10/Exiles | Discovered new exit (range 11) 1658 | -10/Exiles | Learned about 8R-AWN's background 1978 | -10/Exiles | Entered Mines 1985 | -9/Mines | Received a Rocket Launcher from a helpful Derelict 1996 | -9/Mines | Discovered new exit (range 9) 2662 | -9/Mines | Entered Materials 2662 | -8/Materials | Evolved 4 slots: Propulsion x2, Utility x2 2663 | -8/Materials | Identified exit to Storage 3389 | -8/Materials | Garrison activated, responded to threat 3412 | -8/Materials | Build established: Skirmisher 3535 | -8/Materials | Lost 4 parts (1p1n1u1w) 3586 | -8/Materials | Lost 3 parts (2n1u) 3805 | -8/Materials | Build established: Mutant 3902 | -8/Materials | Core integrity fell below 50% 3934 | -8/Materials | Lost 5 parts (1p2u2w) 3940 | -8/Materials | Core integrity fell below 20% 4253 | -8/Materials | Build established: Scavenger-Mutant 4361 | -8/Materials | Discovered new exit (range 16) 4379 | -8/Materials | Entered Factory 4379 | -7/Factory | Evolved 2 slots: Power x1, Utility x1 4702 | -7/Factory | Discovered new exit (range 15) 4733 | -7/Factory | Entered another Factory area 4733 | -6/Factory | Evolved 2 slots: Propulsion x1, Utility x1 5493 | -6/Factory | Build established: Hacker-Mutant 6821 | -6/Factory | Build established: Mutant 6826 | -6/Factory | Lost 9 parts (2p2n2u3w) 6920 | -6/Factory | Core integrity fell below 50% 6957 | -6/Factory | Lost 3 parts (1n1u1w) 7054 | -6/Factory | Discovered new exit (range 9) 7092 | -6/Factory | Entered another Factory area 7092 | -5/Factory | Evolved 2 slots: Utility x2 7864 | -5/Factory | Discovered new exit (range 16) 7885 | -5/Factory | Lost 8 parts (2p3n2u1w) 7999 | -5/Factory | Core integrity fell below 50% 8031 | -5/Factory | Core integrity fell below 20% 8049 | -5/Factory | Entered another Factory area 8049 | -4/Factory | Evolved 2 slots: Propulsion x1, Utility x1 8076 | -4/Factory | Lost 14 parts (3p5n5u1w) 8589 | -4/Factory | Discovered new exit (range 13) 8662 | -4/Factory | Entered Research 8662 | -3/Research | Evolved 2 slots: Utility x2 8945 | -3/Research | Spotted B-86 Titan 8974 | -3/Research | Lost 10 parts (2p3n2u3w) 9020 | -3/Research | Core integrity fell below 50% 9063 | -3/Research | Core integrity fell below 20% 9069 | -3/Research | Destroyed by P-80 Master with Gamma Rifle Last Messages --------------- K-01 Serf destroyed. K-01 Serf collects debris. Slug penetrates Wall. Slug penetrates Particle Synthesizer. Penetrated by Slug. Slammed into R-10 Processor. R-10 Processor knocked back. Acquired Biometal Leg. ALERT: Hostiles spotted, dispatching reinforcements to Terminal R015. Kicked K-01 Serf. K-01 Serf cleans the Terminal. 8CGWFR4VKOGJ|WAI4|UV